{"text_format":"1","workbook":"xlsx","n_sheets":1,"sheets":["Sheet2"],"not_rendered":{"charts":0,"images":0,"macros":1,"external_links":0,"defined_names":3,"comments":0,"pivot_tables":0},"unopened":[],"bounds":{"document_bytes":16777216,"sheet_cells":100000,"rows_first":2000,"rows_last":500,"rows_between":2000,"halvings":0,"cell_chars":16384,"cell_head_chars":4096},"cells_cut":0,"cells_raw":0,"read":"whole","date_system":"1900"}

{"sheet":"Sheet2","index":0,"n_rows":777,"n_cols":5,"rows_kept":777,"cut":false,"hidden":false,"merged":[[13,0,14,0],[13,1,13,2],[14,1,14,2]]}
["El Camino",{"$f":"IF(A1=\"\",\"\",SUMIF(Table1[Transaction],\"*\"&A1&\"*\",Table1[Amount]))","v":13800.05},null,"Best Egg",{"$f":"IF(D1=\"\",\"\",SUMIF(Table1[Transaction],\"*\"&D1&\"*\",Table1[Amount]))","v":3055.1199999999994}]
["Best Egg",{"$f":"IF(A2=\"\",\"\",SUMIF(Table1[Transaction],\"*\"&A2&\"*\",Table1[Amount]))","v":3055.1199999999994},null,"Headway",{"$f":"IF(D2=\"\",\"\",SUMIF(Table1[Transaction],\"*\"&D2&\"*\",Table1[Amount]))","v":19216.66}]
["Home Depot",{"$f":"IF(A3=\"\",\"\",SUMIF(Table1[Transaction],\"*\" & A3 & \"*\",Table1[Amount]))","v":110.22},null,"San Paso",{"$f":"IF(D3=\"\",\"\",SUMIF(Table1[Transaction],\"*\"&D3&\"*\",Table1[Amount]))","v":138.04}]
["Lowe's",{"$f":"IF(A4=\"\",\"\",SUMIF(Table1[Transaction],\"*\"&A4&\"*\",Table1[Amount]))","v":1090.28},null,"Farm Supply",{"$f":"IF(D4=\"\",\"\",SUMIF(Table1[Transaction],\"*\"&D4&\"*\",Table1[Amount]))","v":200.45}]
["Blake's",{"$f":"IF(A5=\"\",\"\",SUMIF(Table1[Transaction],\"*\"&A5&\"*\",Table1[Amount]))","v":320.53000000000003},null,"VZWRLSS",{"$f":"IF(D5=\"\",\"\",SUMIF(Table1[Transaction],\"*\"&D5&\"*\",Table1[Amount]))","v":2042.8400000000004}]
["Tractor Supply",{"$f":"IF(A6=\"\",\"\",SUMIF(Table1[Transaction],\"*\"&A6&\"*\",Table1[Amount]))","v":473.58},null,"Staples",{"$f":"IF(D6=\"\",\"\",SUMIF(Table1[Transaction],\"*\"&D6&\"*\",Table1[Amount]))","v":202.83999999999997}]
["Blueprinter",{"$f":"IF(A7=\"\",\"\",SUMIF(Table1[Transaction],\"*\"&A7&\"*\",Table1[Amount]))","v":76.12},null,"Pioneer",{"$f":"IF(D7=\"\",\"\",SUMIF(Table1[Transaction],\"*\"&D7&\"*\",Table1[Amount]))","v":73.349999999999994}]
["State Farm",{"$f":"IF(A8=\"\",\"\",SUMIF(Table1[Transaction],\"*\"&A8&\"*\",Table1[Amount]))","v":2441.6},null,"Harbor Freight",{"$f":"IF(D8=\"\",\"\",SUMIF(Table1[Transaction],\"*\"&D8&\"*\",Table1[Amount]))","v":215.3}]
["USPS",{"$f":"IF(A9=\"\",\"\",SUMIF(Table1[Transaction],\"*\"&A9&\"*\",Table1[Amount]))","v":35.01},null,"Gov",{"$f":"IF(D9=\"\",\"\",SUMIF(Table1[Transaction],\"*\"&D9&\"*\",Table1[Amount]))","v":79.84}]
["Kritz",{"$f":"IF(A10=\"\",\"\",SUMIF(Table1[Transaction],\"*\"&A10&\"*\",Table1[Amount]))","v":1175.8599999999999},null,"Costco",{"$f":"IF(D10=\"\",\"\",SUMIF(Table1[Transaction],\"*\"&D10&\"*\",Table1[Amount]))","v":523.89}]
["Golden",{"$f":"IF(A11=\"\",\"\",SUMIF(Table1[Transaction],\"*\"&A11&\"*\",Table1[Amount]))","v":3476.0699999999993},null,"Third Base",{"$f":"IF(D11=\"\",\"\",SUMIF(Table1[Transaction],\"*\"&D11&\"*\",Table1[Amount]))","v":8167.9999999999991}]
["Templeton",{"$f":"IF(A12=\"\",\"\",SUMIF(Table1[Transaction],\"*\"&A12&\"*\",Table1[Amount]))","v":2295.9799999999991},null,null,{"$f":"IF(D12=\"\",\"\",SUMIF(Table1[Transaction],\"*\"&D12&\"*\",Table1[Amount]))","v":""}]
[]
["Search Term:","Sub-Total"]
[null,{"$f":"SUBTOTAL(9,Table1[Amount])","v":327102.7100000002}]
[null,"Date","Amount","Transaction"]
[null,"1/02 ",12,"Internet Transfer To 1854"]
[null,"1/02 ",8287.7900000000009,"Internet Transfer To 1854"]
[null,"1/03 ",443.26,"Internet Transfer To 1684"]
[null,"1/08 ",280.36,"Internet Transfer To 1684"]
[null,"1/08 ",398.49,"Internet Transfer To 1684"]
[null,"1/11 ",381.89,"Best Egg PAYMENT 45087375A SCOTT BRANDON"]
[null,"1/19 ",20.309999999999999,"Internet Transfer To 1684"]
[null,"1/19 ",325,"Internet Transfer To 1684"]
[null,"1/19 ",904.26,"Internet Transfer To 1684"]
[null,"1/19 ",2453.96,"Internet Transfer To 1854"]
[null,"1/19 ",2888,"Internet Transfer To 1854"]
[null,"1/22 ",50,"Internet Transfer To 1684"]
[null,"1/22 ",800,"Internet Transfer To 1854"]
[null,"1/23 ",0.17,"PPB #6601444972 PAYMENT"]
[null,"1/31 ",10,"BALANCE REQUIREMENT FEE"]
[null,"2/01 ",288.19,"POS PURCHASE EL CAMINO BUILDING SUPP Atascadero CA 000100 *****8244 0"]
[null,"2/01 ",44.35,"POS PURCHASE Third Base Market and S Paso Robles CA 679613 *****8244 0"]
[null,"2/01 ",48.3,"POS PURCHASE USA 63201 BUELLTON CA 15320 *****8244 0"]
[null,"2/01 ",63.34,"POS PURCHASE Third Base Market and S Paso Robles CA 679613 *****2385 0"]
[null,"2/01 ",95.55,"POS PURCHASE TEMPLETON MARKET TEMPLETON CA 668487 *****8244 0"]
[null,"2/01 ",15.46,"Internet Transfer To 1854"]
[null,"2/01 ",172.39,"Internet Transfer To 1684"]
[null,"2/01 ",450,"Internet Transfer To 1854"]
[null,"2/01 ",778.85,"Internet Transfer To 1854"]
[null,"2/02 ",40,"ATM WITHDRAWAL PACIFIC PREMI 545 12TH STRE PASO ROBLE CA IC1965 *****2385 0"]
[null,"2/02 ",100,"ATM WITHDRAWAL PACIFIC PREMI 545 12TH STRE PASO ROBLE CA IC1965 *****2385 0"]
[null,"2/02 ",26.23,"POS PURCHASE RITE AID 05832 PASO ROBLES CA 549000 *****8244 0"]
[null,"2/02 ",62,"POS PURCHASE GOLDEN HIL PASO ROBLES CA 00N1GR *****8244 0"]
[null,"2/02 ",600,"Internet Transfer To 1684"]
[null,"2/02 ",1000,"Internet Transfer To 1684"]
[null,"2/02 ",1788.33,"Internet Transfer To 1854"]
[null,"2/02 ",7353.3,"Internet Transfer To 1854"]
[null,"2/05 ",29,"POS PURCHASE GOLDEN HIL PASO ROBLES CA 00N1GR *****2385 0"]
[null,"2/05 ",42.09,"POS PURCHASE TRACTOR SUPPLY CO #1609 PASO ROBLES CA 090001 *****2385 0"]
[null,"2/05 ",45.57,"POS PURCHASE TRACTOR SUPPLY CO #1609 PASO ROBLES CA 090001 *****2385 0"]
[null,"2/05 ",80.62,"POS PURCHASE SMART AND FINAL 939 PASO ROBLES CA 482200 *****2385 0"]
[null,"2/05 ",27.19,"POS PURCHASE SQ *THE BLUEPRINTER & G Paso Robles CA IND100 *****8244 0"]
[null,"2/05 ",42.2,"POS PURCHASE TEMPLETON MARKET TEMPLETON CA 668487 *****8244 0"]
[null,"2/05 ",42.99,"POS PURCHASE Third Base Market and S Paso Robles CA 679613 *****8244 0"]
[null,"2/05 ",46.44,"POS PURCHASE TEMPLETON MARKET TEMPLETON CA 668487 *****8244 0"]
[null,"2/05 ",70.33,"POS PURCHASE FARM SUPPLY COMPANY P PASO ROBLES CA 000079 *****8244 0"]
[null,"2/05 ",107.54,"POS PURCHASE CKE*STREET SIDE ALE HOU ATASCADERO CA 523659 *****8244 0"]
[null,"2/05 ",186.38,"POS PURCHASE STATE FARM INSURANCE 800-956-6310 IL 00 *****2385 0"]
[null,"2/05 ",247.55,"POS PURCHASE VZWRLSS*BILL PAY VB 800-922-0204 FL INC100 *****2385 0"]
[null,"2/06 ",59,"POS PURCHASE PASO PETCARE VETERINARY PASO ROBLES CA IN8900 *****2385 0"]
[null,"2/06 ",1840,"TELLER WITHDRAWL"]
[null,"2/06 ",2223.9,"Internet Transfer To 1854"]
[null,"2/07 ",46.69,"POS PURCHASE TEMPLETON MARKET TEMPLETON CA 668487 *****8244 0"]
[null,"2/08 ",23.08,"POS PURCHASE TEMPLETON MARKET TEMPLETON CA 668487 *****8244 0"]
[null,"2/08 ",31.5,"POS PURCHASE GOLDEN HIL PASO ROBLES CA 00N1GR *****8244 0"]
[null,"2/08 ",41.87,"POS PURCHASE TEMPLETON MARKET TEMPLETON CA 668487 *****8244 0"]
[null,"2/09 ",4.4000000000000004,"POS PURCHASE USPS PO 05777004 101 N TEMPLETON CA 999999 *****2385 0"]
[null,"2/09 ",23.25,"POS PURCHASE GOLDEN HIL PASO ROBLES CA 00N1GR *****8244 0"]
[null,"2/09 ",87.96,"POS PURCHASE FOOD 4 LESS 0012 PASO ROBLES CA 986142 *****8244 0"]
[null,"2/09 ",1000,"POS PURCHASE Third Base Market and S Paso Robles CA 679613 *****8244 0"]
[null,"2/09 ",52.5,"POS PURCHASE GOLDEN HIL PASO ROBLES CA 00N1GR *****8244 0"]
[null,"2/09 ",54.74,"POS PURCHASE Third Base Market and S Paso Robles CA 679613 *****8244 0"]
[null,"2/12 ",22.84,"POS PURCHASE EL CAMINO BUILDING SUPP Atascadero CA 000100 *****8244 0"]
[null,"2/12 ",25.37,"POS PURCHASE TEMPLETON MARKET TEMPLETON CA 668487 *****8244 0"]
[null,"2/12 ",45.61,"POS PURCHASE SMART AND FINAL 939 PASO ROBLES CA 482200 *****8244 0"]
[null,"2/12 ",817.26,"POS PURCHASE EL CAMINO BUILDING SUPP Atascadero CA 000100 *****8244 0"]
[null,"2/12 ",40,"POS PURCHASE Third Base Market and S Paso Robles CA 679613 *****8244 0"]
[null,"2/12 ",442.38,"Internet Transfer To 1854"]
[null,"2/13 ",8.66,"POS PURCHASE CV"]
[null,"2/13 ",64,"POS PURCHASE EL CAMINO BUILDING SUPP Atascadero CA 000100 *****8244 0"]
[null,"2/13 ",84.32,"POS PURCHASE OAK HILL MARKET PASO ROBLES CA 832598 *****8244 0"]
[null,"2/13 ",40,"POS PURCHASE Third Base Market and S Paso Robles CA 679613 *****8244 0"]
[null,"2/13 ",44.35,"POS PURCHASE Third Base Market and S Paso Robles CA 679613 *****8244 0"]
[null,"2/13 ",381.89,"Best Egg PAYMENT 45087375A SCOTT BRANDON"]
[null,"2/14 ",13.03,"POS PURCHASE TEMPLETON MARKET TEMPLETON CA 668487 *****8244 0"]
[null,"2/14 ",14.36,"POS PURCHASE LOWE'S #2730 PASO ROBLES CA 001 *****8244 0"]
[null,"2/14 ",23,"POS PURCHASE GOLDEN HIL PASO ROBLES CA 00N1GR *****8244 0"]
[null,"2/14 ",41.28,"POS PURCHASE LOWE'S #2730 PASO ROBLES CA 001 *****8244 0"]
[null,"2/15 ",31,"POS PURCHASE GOLDEN HIL PASO ROBLES CA 00N1GR *****8244 0"]
[null,"2/15 ",30,"POS PURCHASE GOLDEN HIL PASO ROBLES CA 00N1GR *****8244 0"]
[null,"2/15 ",39.6,"POS PURCHASE TST* OFF THE 46 MEXICAN Paso Robles CA IN0700 *****8244 0"]
[null,"2/15 ",48.09,"POS PURCHASE TEMPLETON MARKET TEMPLETON CA 668487 *****8244 0"]
[null,"2/15 ",100,"CAPITAL ON"]
[null,"2/15 ",340,"DISCOVE"]
[null,"2/16 ",31.99,"POS PURCHASE GOLDEN HIL PASO ROBLES CA 00N1GR *****8244 0"]
[null,"2/16 ",44.35,"POS PURCHASE Third Base Market and S Paso Robles CA 679613 *****8244 0"]
[null,"2/20 ",26.18,"POS PURCHASE TEMPLETON MARKET TEMPLETON CA 668487 *****8244 0"]
[null,"2/20 ",120.01,"POS PURCHASE FOOD 4 LESS 0012 PASO ROBLES CA 986142 *****2385 0"]
[null,"2/20 ",60,"POS PURCHASE GOLDEN HIL PASO ROBLES CA 00N1GR *****8244 0"]
[null,"2/21 ",33.69,"POS PURCHASE TRACTOR SUPPLY CO #1609 PASO ROBLES CA 090001 *****2385 0"]
[null,"2/21 ",12.08,"POS PURCHASE SQ *JOEBELLA COFFEE PAS Paso Robles CA INB800 *****8244 0"]
[null,"2/21 ",66.05,"POS PURCHASE TEMPLETON MARKET TEMPLETON CA 668487 *****8244 0"]
[null,"2/22 ",7.7,"POS PURCHASE LOWE'S #2730 PASO ROBLES CA 001 *****8244 0"]
[null,"2/22 ",11.02,"POS PURCHASE SMART AND FINAL 939 PASO ROBLES CA 482200 *****8244 0"]
[null,"2/22 ",22,"POS PURCHASE GOLDEN HIL PASO ROBLES CA 00N1GR *****8244 0"]
[null,"2/22 ",25.5,"POS PURCHASE GOLDEN HIL PASO ROBLES CA 00N1GR *****8244 0"]
[null,"2/22 ",11.7,"POS PURCHASE THIRD BASE MARKET AND S PASO ROBLES CA 00 *****8244 0"]
[null,"2/22 ",44.35,"POS PURCHASE Third Base Market and S Paso Robles CA 679613 *****8244 0"]
[null,"2/22 ",2120,"TELLER WITHDRAWL"]
[null,"2/22 ",438.96,"Internet Transfer To 1854"]
[null,"2/23 ",50.16,"POS PURCHASE SAN PASO TRUCK STOP PASO ROBLES CA 552145 *****8244 0"]
[null,"2/23 ",23.69,"PPB #6601444972 PAYMENT"]
[null,"2/26 ",13.48,"POS PURCHASE PLEYTO STORE BRADLEY CA 00 *****8244 0"]
[null,"2/27 ",55.8,"POS PURCHASE SPRING STREET MART PASO ROBLES CA 107212 *****8244 0"]
[null,"2/29 ",47.91,"POS PURCHASE SMART AND FINAL 392 PASO ROBLES CA 481922 *****8244 0"]
[null,"2/29 ",48.61,"POS PURCHASE Third Base Market and S Paso Robles CA 679613 *****8244 0"]
[null,"2/29 ",0.2,"DEPOSIT CORRECTION DEBIT"]
[null,"2/29 ",2177.19,"HEADWAYCAPITAL"]
[null,"2/29 ",10,"BALANCE REQUIREMENT FEE"]
[null,"2/29 ",2,"PAPER STATEMENT FEE"]
[null,"3/01 ",1175.8599999999999,"POS PURCHASE KRITZ EXCAVATING AND T PASO ROBLES CA 090286 *****2385 0"]
[null,"3/01 ",66.430000000000007,"POS PURCHASE Third Base Market and S Paso Robles CA 679613 *****8244 0"]
[null,"3/01 ",12,"Internet Transfer To 1854"]
[null,"3/01 ",2667.3,"Internet Transfer To 1684"]
[null,"3/04 ",9.65,"POS PURCHASE TEMPLETON MARKET TEMPLETON CA 668487 *****8244 0"]
[null,"3/04 ",16,"POS PURCHASE GOLDEN HIL PASO ROBLES CA 00N1GR *****8244 0"]
[null,"3/04 ",23.88,"POS PURCHASE NST THE HOME DEPOT 0029 ATASCADERO CA 061394 *****8244 0"]
[null,"3/04 ",29,"POS PURCHASE GOLDEN HIL PASO ROBLES CA 00N1GR *****8244 0"]
[null,"3/04 ",61.98,"POS PURCHASE TRACTOR SUPPLY CO #1609 PASO ROBLES CA 090001 *****2385 0"]
[null,"3/04 ",73.58,"POS PURCHASE SPENCER S FRESH MARKETS MORRO BAY CA 447745 *****2385 0"]
[null,"3/04 ",16.309999999999999,"POS PURCHASE SQ *THE BLUEPRINTER & G Paso Robles CA IN4400 *****8244 0"]
[null,"3/04 ",44.35,"POS PURCHASE Third Base Market and S Paso Robles CA 679613 *****8244 0"]
[null,"3/04 ",52.68,"POS PURCHASE TEMPLETON MARKET TEMPLETON CA 668487 *****8244 0"]
[null,"3/04 ",54.14,"POS PURCHASE TEMPLETON MARKET TEMPLETON CA 668487 *****8244 0"]
[null,"3/04 ",393.1,"POS PURCHASE VZWRLSS*BILL PAY VB 800-922-0204 FL IN2000 *****2385 0"]
[null,"3/05 ",19.28,"POS PURCHASE CV"]
[null,"3/05 ",85.17,"POS PURCHASE LOWE'S #2730 PASO ROBLES CA 001 *****8244 0"]
[null,"3/05 ",12.93,"POS PURCHASE COFFEE BEAN AND TEA LEA PISMO BEACH CA 823960 *****8244 0"]
[null,"3/05 ",40,"POS PURCHASE Third Base Market and S Paso Robles CA 679613 *****8244 0"]
[null,"3/05 ",43.91,"POS PURCHASE TEMPLETON MARKET TEMPLETON CA 668487 *****8244 0"]
[null,"3/06 ",2376.09,"Internet Transfer To 1854"]
[null,"3/06 ",4200,"Internet Transfer To 1854"]
[null,"3/07 ",10.99,"POS PURCHASE GOLDEN HILL 76 PASO ROBLES CA 00N1GR *****8244 0"]
[null,"3/07 ",23.43,"POS PURCHASE OAK HILL MARKET PASO ROBLES CA 832598 *****8244 0"]
[null,"3/07 ",46.69,"POS PURCHASE TEMPLETON MARKET TEMPLETON CA 668487 *****8244 0"]
[null,"3/07 ",47.88,"POS PURCHASE SAN PASO TRUCK STOP PASO ROBLES CA 552145 *****8244 0"]
[null,"3/08 ",32.99,"POS PURCHASE GOLDEN HIL PASO ROBLES CA 00N1GR *****8244 0"]
[null,"3/08 ",220.78,"POS PURCHASE BLAKE'S TRUE VALUE PASO ROBLES CA 000045 *****8244 0"]
[null,"3/11 ",14.38,"POS PURCHASE HAYWARD LUMBER SLO SAN LUIS OBIS CA 986834 *****8244 0"]
[null,"3/11 ",17.739999999999998,"POS PURCHASE GOLDEN HIL PASO ROBLES CA 00N1GR *****8244 0"]
[null,"3/11 ",35.44,"POS PURCHASE CV"]
[null,"3/11 ",48.81,"POS PURCHASE SMART AND FINAL 939 PASO ROBLES CA 482200 *****8244 0"]
[null,"3/11 ",131.33000000000001,"POS PURCHASE FOOD 4 LESS 0012 PASO ROBLES CA 986142 *****2385 0"]
[null,"3/11 ",155.49,"POS PURCHASE Lemos Feed & Pet Supply Paso Robles CA 000100 *****2385 0"]
[null,"3/11 ",44.35,"POS PURCHASE Third Base Market and S Paso Robles CA 679613 *****8244 0"]
[null,"3/11 ",46.5,"POS PURCHASE GOLDEN HIL PASO ROBLES CA 00N1GR *****8244 0"]
[null,"3/11 ",48.18,"POS PURCHASE TEMPLETON MARKET TEMPLETON CA 668487 *****8244 0"]
[null,"3/11 ",73.349999999999994,"POS PURCHASE SES PIONEER MART PASO ROBLES CA 460587 *****8244 0"]
[null,"3/11 ",780,"Internet Transfer To 1854"]
[null,"3/11 ",1312.27,"Internet Transfer To 1854"]
[null,"3/11 ",6576.09,"Internet Transfer To 1854"]
[null,"3/12 ",27.19,"POS PURCHASE EL CAMINO BUILDING SUPP Atascadero CA 000100 *****8244 0"]
[null,"3/12 ",57.21,"POS PURCHASE LOWE'S #2730 PASO ROBLES CA 001 *****8244 0"]
[null,"3/12 ",40,"POS PURCHASE TEMPLETON MARKET TEMPLETON CA 668487 *****8244 0"]
[null,"3/12 ",381.89,"Best Egg PAYMENT 45087375A SCOTT BRANDON"]
[null,"3/13 ",16.170000000000002,"POS PURCHASE RITE AID 05832 PASO ROBLES CA 549000 *****8244 0"]
[null,"3/13 ",44.35,"POS PURCHASE Third Base Market and S Paso Robles CA 679613 *****8244 0"]
[null,"3/13 ",66,"DISCOVE"]
[null,"3/14 ",34.44,"POS PURCHASE GOLDEN HIL PASO ROBLES CA 00N1GR *****8244 0"]
[null,"3/14 ",42.99,"POS PURCHASE Third Base Market and S Paso Robles CA 679613 *****8244 0"]
[null,"3/15 ",11,"POS PURCHASE GOLDEN HILL 76 PASO ROBLES CA 00N1GR *****8244 0"]
[null,"3/15 ",42.98,"POS PURCHASE TEMPLETON MARKET TEMPLETON CA 668487 *****8244 0"]
[null,"3/18 ",58.9,"POS PURCHASE Third Base Market and S Paso Robles CA 679613 *****8244 0"]
[null,"3/20 ",9.7899999999999991,"POS PURCHASE EL CAMINO BUILDING SUPP Atascadero CA 000100 *****8244 0"]
[null,"3/20 ",11.5,"POS PURCHASE GOLDEN HILL 76 PASO ROBLES CA 00N1GR *****8244 0"]
[null,"3/20 ",26.6,"POS PURCHASE LOWE'S #27 PASO ROBLES CA 001 *****8244 0"]
[null,"3/20 ",30.44,"POS PURCHASE SPECIALTY PET SUPPLY ATASCADERO CA 075454 *****2385 0"]
[null,"3/20 ",55.43,"POS PURCHASE COSTCO WHSE #0741 SAN LUIS OBIS CA 990741 *****2385 0"]
[null,"3/20 ",39.840000000000003,"POS PURCHASE SP NATURAL ALTERNATIVE 180-52378290 CA CLIE7O *****8244 0"]
[null,"3/20 ",49.59,"POS PURCHASE Third Base Market and S Paso Robles CA 679613 *****8244 0"]
[null,"3/20 ",50,"POS PURCHASE Third Base Market and S Paso Robles CA 679613 *****2385 0"]
[null,"3/21 ",8.73,"POS PURCHASE USPS PO 05777004 101 N TEMPLETON CA 999999 *****2385 0"]
[null,"3/21 ",11.74,"POS PURCHASE TEMPLETON MARKET TEMPLETON CA 668487 *****8244 0"]
[null,"3/21 ",54.35,"POS PURCHASE Third Base Market and S Paso Robles CA 679613 *****8244 0"]
[null,"3/21 ",396.32,"TELLER WITHDRAWL"]
[null,"3/21 ",100,"Internet Transfer To 1684"]
[null,"3/21 ",340,"Internet Transfer To 1854"]
[null,"3/21 ",675.12,"Internet Transfer To 1684"]
[null,"3/21 ",800,"Internet Transfer To 1854"]
[null,"3/21 ",7889.65,"Internet Transfer To 1854"]
[null,"3/22 ",16.920000000000002,"POS PURCHASE TEMPLETON MARKET TEMPLETON CA 668487 *****8244 0"]
[null,"3/22 ",26.99,"POS PURCHASE GOLDEN HIL PASO ROBLES CA 00N1GR *****8244 0"]
[null,"3/22 ",88.07,"POS PURCHASE Lemos Feed & Pet Supply Paso Robles CA 000100 *****2385 0"]
[null,"3/22 ",44.35,"POS PURCHASE Third Base Market and S Paso Robles CA 679613 *****8244 0"]
[null,"3/22 ",100,"CAPITAL ON"]
[null,"3/25 ",4.5,"POS PURCHASE GOLDEN HILL 76 PASO ROBLES CA 00N1GR *****8244 0"]
[null,"3/25 ",11.75,"POS PURCHASE GOLDEN HILL 76 PASO ROBLES CA 00N1GR *****8244 0"]
[null,"3/25 ",71.42,"POS PURCHASE GROCERY OUTLET OF PASO PASO ROBLES CA 820627 *****2385 0"]
[null,"3/25 ",149.38,"POS PURCHASE FOOD 4 LESS 0012 PASO ROBLES CA 986142 *****2385 0"]
[null,"3/25 ",8,"POS PURCHASE RITE AID 05832 PASO ROBLES CA 549000 *****8244 0"]
[null,"3/25 ",14.13,"POS PURCHASE JERSEY MIKES 20303 PASO ROBLES CA 000065 *****8244 0"]
[null,"3/25 ",18,"POS PURCHASE SQ *BROWN BUTTER COOKIE Cayucos CA IN6600 *****8244 0"]
[null,"3/25 ",40,"POS PURCHASE Third Base Market and S Paso Robles CA 679613 *****8244 0"]
[null,"3/25 ",44.35,"POS PURCHASE Third Base Market and S Paso Robles CA 679613 *****8244 0"]
[null,"3/25 ",59.36,"POS PURCHASE Third Base Market and S Paso Robles CA 679613 *****8244 0"]
[null,"3/25 ",278.16000000000003,"POS PURCHASE VZWRLSS*BILL PAY VB 800-922-0204 FL INC000 *****2385 0"]
[null,"3/25 ",27.01,"PPB #6601444972 PAYMENT"]
[null,"3/26 ",7.66,"POS PURCHASE TEMPLETON MARKET TEMPLETON CA 668487 *****8244 0"]
[null,"3/26 ",22,"POS PURCHASE GOLDEN HIL PASO ROBLES CA 00N1GR *****8244 0"]
[null,"3/26 ",104.68,"POS PURCHASE SMART AND FINAL 939 PASO ROBLES CA 482200 *****8244 0"]
[null,"3/26 ",50.89,"POS PURCHASE Third Base Market and S Paso Robles CA 679613 *****8244 0"]
[null,"3/27 ",23.57,"POS PURCHASE GROCERY OUTLET OF PASO PASO ROBLES CA 820627 *****8244 0"]
[null,"3/27 ",101.99,"POS PURCHASE STAPLES 1385 ATASCADERO CA 081596 *****2385 0"]
[null,"3/27 ",7.93,"POS PURCHASE BLAKE'S TRUE VALUE PASO ROBLES CA 000045 *****8244 0"]
[null,"3/27 ",40,"POS PURCHASE Third Base Market and S Paso Robles CA 679613 *****8244 0"]
[null,"3/27 ",43.24,"POS PURCHASE Third Base Market and S Paso Robles CA 679613 *****8244 0"]
[null,"3/27 ",16.27,"Internet Transfer To 1684"]
[null,"3/27 ",2800,"Internet Transfer To 1854"]
[null,"3/28 ",21.87,"POS PURCHASE OAK HILL MARKET PASO ROBLES CA 832598 *****8244 0"]
[null,"3/28 ",24.99,"POS PURCHASE LOWE'S #27 PASO ROBLES CA 001 *****8244 0"]
[null,"3/28 ",13.06,"POS PURCHASE PLEYTO STORE BRADLEY CA 00 *****8244 0"]
[null,"3/28 ",30,"POS PURCHASE GOLDEN HIL PASO ROBLES CA 00N1GR *****8244 0"]
[null,"3/28 ",41.01,"POS PURCHASE GOLDEN HIL PASO ROBLES CA 00N1GR *****8244 0"]
[null,"3/29 ",400,"Internet Transfer To 1854"]
[null,"3/29 ",10,"BALANCE REQUIREMENT FEE"]
[null,"3/29 ",2,"PAPER STATEMENT FEE"]
[null,"4/01 ",8.1300000000000008,"POS PURCHASE FOOD 4 LESS 0012 PASO ROBLES CA 986142 *****8244 0"]
[null,"4/01 ",13.42,"POS PURCHASE RITE AID 05831 PASO ROBLES CA 548997 *****2385 0"]
[null,"4/01 ",86.31,"POS PURCHASE SPENCER S FRESH MARKETS MORRO BAY CA 447745 *****8244 0"]
[null,"4/01 ",10.5,"POS PURCHASE SQ *JOEBELLA COFFEE PAS Paso Robles CA IN0800 *****8244 0"]
[null,"4/01 ",10.88,"POS PURCHASE TARA LEES MORRO BAY CA V84484 *****8244 0"]
[null,"4/01 ",13.28,"POS PURCHASE PLEYTO STORE BRADLEY CA 00 *****8244 0"]
[null,"4/01 ",42,"POS PURCHASE GOLDEN HIL PASO ROBLES CA 00N1GR *****8244 0"]
[null,"4/01 ",44.09,"POS PURCHASE Third Base Market and S Paso Robles CA 679613 *****8244 0"]
[null,"4/01 ",2177.19,"HEADWAYCAPITAL"]
[null,"4/02 ",37.39,"POS PURCHASE Third Base Market and S Paso Robles CA 679613 *****8244 0"]
[null,"4/02 ",41.87,"POS PURCHASE TEMPLETON MARKET TEMPLETON CA 668487 *****8244 0"]
[null,"4/02 ",130.30000000000001,"POS PURCHASE CENTRAL COAST OMS PASO 805-2392120 CA 774667 *****8244 0"]
[null,"4/02 ",720,"TELLER WITHDRAWL"]
[null,"4/02 ",46.75,"Internet Transfer To 1854"]
[null,"4/02 ",3463.65,"Internet Transfer To 1854"]
[null,"4/03 ",20.49,"POS PURCHASE LOWE'S #27 PASO ROBLES CA 001 *****8244 0"]
[null,"4/03 ",60.88,"POS PURCHASE TRACTOR SUPPLY CO #1609 PASO ROBLES CA 090001 *****2385 0"]
[null,"4/03 ",50,"POS PURCHASE Third Base Market and S Paso Robles CA 679613 *****2385 0"]
[null,"4/03 ",52,"POS PURCHASE GOLDEN HIL PASO ROBLES CA 00N1GR *****8244 0"]
[null,"4/04 ",20,"POS PURCHASE GOLDEN HIL PASO ROBLES CA 00N1GR *****8244 0"]
[null,"4/04 ",24,"POS PURCHASE GOLDEN HIL PASO ROBLES CA 00N1GR *****8244 0"]
[null,"4/04 ",49.34,"POS PURCHASE Third Base Market and S Paso Robles CA 679613 *****8244 0"]
[null,"4/05 ",211.77,"POS PURCHASE COSTCO WHSE #0741 SAN LUIS OBIS CA 990741 *****2385 0"]
[null,"4/05 ",10.89,"POS PURCHASE THIRD BASE MARKET AND S PASO ROBLES CA 00 *****8244 0"]
[null,"4/05 ",80.69,"POS PURCHASE JAPANESE RESTAURANT GO PASO ROBLES CA INP700 *****8244 0"]
[null,"4/05 ",82.8,"POS PURCHASE ALBERTSONS #0314 PASO ROBLES CA 031402 *****8244 0"]
[null,"4/05 ",10898.46,"Internet Transfer To 1854"]
[null,"4/08 ",100,"ATM WITHDRAWAL PACIFIC PREMI 545 12TH STRE PASO ROBLE CA IC1965 *****8244 0"]
[null,"4/08 ",7.7,"POS PURCHASE LOWE'S #27 PASO ROBLES CA 001 *****8244 0"]
[null,"4/08 ",11.51,"POS PURCHASE SHERWIN WILLIAMS 70825 PASO ROBLES CA 079444 *****8244 0"]
[null,"4/08 ",13.24,"POS PURCHASE GROCERY OUTLET OF PASO PASO ROBLES CA 820627 *****8244 0"]
[null,"4/08 ",13.28,"POS PURCHASE PLEYTO STORE BRADLEY CA 692418 *****8244 0"]
[null,"4/08 ",27.25,"POS PURCHASE GOLDEN HIL PASO ROBLES CA 00N1GR *****8244 0"]
[null,"4/08 ",1092.3900000000001,"POS PURCHASE EL CAMINO BUILDING SUPP Atascadero CA 000100 *****8244 0"]
[null,"4/08 ",3,"POS PURCHASE CITY OF SLO PKG 871 SAN LUIS OBIS CA INC100 *****8244 0"]
[null,"4/08 ",23.58,"POS PURCHASE SQ *JOEBELLA COFFEE PAS Paso Robles CA IN1400 *****8244 0"]
[null,"4/08 ",41.87,"POS PURCHASE TEMPLETON MARKET TEMPLETON CA 668487 *****8244 0"]
[null,"4/08 ",44.09,"POS PURCHASE Third Base Market and S Paso Robles CA 679613 *****8244 0"]
[null,"4/08 ",55.59,"POS PURCHASE Third Base Market and S Paso Robles CA 679613 *****8244 0"]
[null,"4/08 ",57.42,"POS PURCHASE Third Base Market and S Paso Robles CA 679613 *****8244 0"]
[null,"4/09 ",25.5,"POS PURCHASE GOLDEN HIL PASO ROBLES CA 00N1GR *****8244 0"]
[null,"4/09 ",404.82,"POS PURCHASE EL CAMINO BUILDING SUPP Atascadero CA 000100 *****8244 0"]
[null,"4/09 ",31.87,"POS PURCHASE TEMPLETON MARKET TEMPLETON CA 668487 *****8244 0"]
[null,"4/09 ",34.04,"POS PURCHASE HEWITT HDWE, INC. TEMPLETON CA 000073 *****8244 0"]
[null,"4/09 ",40,"POS PURCHASE SAN PASO TRUCK STOP PASO ROBLES CA 552145 *****8244 0"]
[null,"4/10 ",32.270000000000003,"POS PURCHASE OAK HILL MARKET PASO ROBLES CA 832598 *****8244 0"]
[null,"4/10 ",11.79,"POS PURCHASE SQ *TOP DOG COFFEE BAR Morro Bay CA INC000 *****8244 0"]
[null,"4/10 ",55.24,"POS PURCHASE Third Base Market and S Paso Robles CA 679613 *****8244 0"]
[null,"4/10 ",929.5,"POS PURCHASE ANTHONY'S TIRE STORE 805-2370377 CA 792210 *****8244 0"]
[null,"4/11 ",12.2,"POS PURCHASE USPS PO 05777004 101 N TEMPLETON CA 999999 *****2385 0"]
[null,"4/11 ",44.19,"POS PURCHASE GOLDEN HIL PASO ROBLES CA 00N1GR *****8244 0"]
[null,"4/11 ",54.31,"POS PURCHASE LOWE'S #27 PASO ROBLES CA 001 *****8244 0"]
[null,"4/11 ",11.79,"POS PURCHASE SQ *TOP DOG COFFEE BAR Morro Bay CA IN1200 *****8244 0"]
[null,"4/11 ",28.75,"POS PURCHASE GOLDEN HIL PASO ROBLES CA 00N1GR *****8244 0"]
[null,"4/11 ",30.89,"POS PURCHASE GIOVANNI'S FISH MARKET 805-7721276 CA 776141 *****8244 0"]
[null,"4/11 ",35.08,"POS PURCHASE TEMPLETON MARKET TEMPLETON CA 668487 *****8244 0"]
[null,"4/11 ",44.35,"POS PURCHASE Third Base Market and S Paso Robles CA 679613 *****8244 0"]
[null,"4/11 ",35,"Internet Transfer To 1854"]
[null,"4/11 ",56.03,"Internet Transfer To 1854"]
[null,"4/11 ",381.89,"Best Egg PAYMENT 45087375A SCOTT BRANDON"]
[null,"4/12 ",17.309999999999999,"POS PURCHASE EL CAMINO BUILDING SUPP Atascadero CA 000100 *****8244 0"]
[null,"4/12 ",28.9,"POS PURCHASE OAK HILL MARKET PASO ROBLES CA 832598 *****8244 0"]
[null,"4/12 ",44.72,"POS PURCHASE WAL-MART #2099 PASO ROBLES CA 242099 *****2385 0"]
[null,"4/12 ",156.93,"POS PURCHASE EL CAMINO BUILDING SUPP Atascadero CA 000100 *****8244 0"]
[null,"4/12 ",10.54,"POS PURCHASE RITE AID 05832 PASO ROBLES CA 549000 *****8244 0"]
[null,"4/12 ",12.58,"POS PURCHASE PLEYTO STORE BRADLEY CA 00 *****8244 0"]
[null,"4/12 ",40,"POS PURCHASE Third Base Market and S Paso Robles CA 679613 *****8244 0"]
[null,"4/12 ",52.79,"POS PURCHASE TST* RUSTIC FIRE PASO ROBLES CA IN4400 *****8244 0"]
[null,"4/12 ",200,"DISCOVE"]
[null,"4/15 ",7.68,"POS PURCHASE GOLDEN HILL 76 PASO ROBLES CA 00N1GR *****8244 0"]
[null,"4/15 ",20,"POS PURCHASE GOLDEN HIL PASO ROBLES CA 00N1GR *****8244 0"]
[null,"4/15 ",51.26,"POS PURCHASE SMART AND FINAL 939 PASO ROBLES CA 482200 *****8244 0"]
[null,"4/15 ",65.819999999999993,"POS PURCHASE TRACTOR SUPPLY CO #1609 PASO ROBLES CA 090001 *****2385 0"]
[null,"4/15 ",32.799999999999997,"POS PURCHASE TST* OFF THE 46 MEXICAN Paso Robles CA INC900 *****8244 0"]
[null,"4/15 ",40,"POS PURCHASE Third Base Market and S Paso Robles CA 679613 *****8244 0"]
[null,"4/15 ",56.03,"POS PURCHASE Third Base Market and S Paso Robles CA 679613 *****8244 0"]
[null,"4/15 ",200,"CAPITAL ON"]
[null,"4/16 ",58.4,"POS PURCHASE ALBERTSONS #0314 PASO ROBLES CA 213984 *****2385 0"]
[null,"4/16 ",44.35,"POS PURCHASE Third Base Market and S Paso Robles CA 679613 *****8244 0"]
[null,"4/16 ",316.88,"Internet Transfer To 1684"]
[null,"4/17 ",42.64,"POS PURCHASE Third Base Market and S Paso Robles CA 679613 *****8244 0"]
[null,"4/17 ",60,"POS PURCHASE Third Base Market and S Paso Robles CA 679613 *****8244 0"]
[null,"4/17 ",8020.79,"Internet Transfer To 1854"]
[null,"4/17 ",8218.23,"Internet Transfer To 1854"]
[null,"4/18 ",5.62,"POS PURCHASE TEMPLETON MARKET TEMPLETON CA 668487 *****8244 0"]
[null,"4/18 ",8.77,"POS PURCHASE TEMPLETON MARKET TEMPLETON CA 668487 *****8244 0"]
[null,"4/18 ",15.97,"POS PURCHASE OAK HILL MARKET PASO ROBLES CA 832598 *****8244 0"]
[null,"4/18 ",860.7,"POS PURCHASE EL CAMINO BUILDING SUPP Atascadero CA 000100 *****8244 0"]
[null,"4/18 ",48.01,"POS PURCHASE GOLDEN HIL PASO ROBLES CA 00N1GR *****8244 0"]
[null,"4/18 ",56.03,"POS PURCHASE Third Base Market and S Paso Robles CA 679613 *****2385 0"]
[null,"4/19 ",30,"POS PURCHASE GOLDEN HIL PASO ROBLES CA 00N1GR *****8244 0"]
[null,"4/19 ",40,"POS PURCHASE Third Base Market and S Paso Robles CA 679613 *****8244 0"]
[null,"4/19 ",53.34,"POS PURCHASE Third Base Market and S Paso Robles CA 679613 *****8244 0"]
[null,"4/22 ",13.5,"POS PURCHASE OAK HILL MARKET PASO ROBLES CA 832598 *****8244 0"]
[null,"4/22 ",35,"POS PURCHASE GOLDEN HIL PASO ROBLES CA 00N1GR *****8244 0"]
[null,"4/22 ",37.93,"POS PURCHASE OAK HILL MARKET PASO ROBLES CA 832598 *****8244 0"]
[null,"4/22 ",49.35,"POS PURCHASE LOWE'S #27 PASO ROBLES CA 001 *****8244 0"]
[null,"4/22 ",57.63,"POS PURCHASE TARGET T-1120 Paso Robles CA 311200 *****2385 0"]
[null,"4/22 ",289.49,"POS PURCHASE EL CAMINO BUILDING SUPP Atascadero CA 000100 *****8244 0"]
[null,"4/22 ",57.33,"POS PURCHASE Third Base Market and S Paso Robles CA 679613 *****8244 0"]
[null,"4/22 ",58.18,"POS PURCHASE PASO ROBLES BREW CO. LL PASO ROBLES CA IN7200 *****2385 0"]
[null,"4/22 ",64.03,"POS PURCHASE TEMPLETON MARKET TEMPLETON CA 668487 *****8244 0"]
[null,"4/22 ",107.24,"POS PURCHASE AMAZON.COM SEATTLE WA 000000 *****8244 0"]
[null,"4/22 ",157.38,"POS PURCHASE PR PARILLA LLC PASO ROBLES CA INP900 *****8244 0"]
[null,"4/22 ",278.16000000000003,"POS PURCHASE VZWRLSS*BILL PAY VB 800-922-0204 FL INB800 *****2385 0"]
[null,"4/22 ",970.22,"Internet Transfer To 4972"]
[null,"4/23 ",3.75,"POS PURCHASE TEMPLETON MARKET TEMPLETON CA 668487 *****8244 0"]
[null,"4/23 ",20,"POS PURCHASE GOLDEN HIL PASO ROBLES CA 00N1GR *****8244 0"]
[null,"4/23 ",29,"POS PURCHASE GOLDEN HIL PASO ROBLES CA 00N1GR *****8244 0"]
[null,"4/23 ",36.159999999999997,"POS PURCHASE EL CAMINO BUILDING SUPP Atascadero CA 000100 *****8244 0"]
[null,"4/23 ",41.01,"POS PURCHASE 76 - GOLDEN HILL 76 PASO ROBLES CA 21 *****8244 0"]
[null,"4/23 ",44.35,"POS PURCHASE Third Base Market and S Paso Robles CA 679613 *****8244 0"]
[null,"4/23 ",57.75,"POS PURCHASE GOLDEN HIL PASO ROBLES CA 00N1GR *****8244 0"]
[null,"4/23 ",12.87,"Internet Transfer To 4972"]
[null,"4/23 ",420,"Internet Transfer To 1684"]
[null,"4/23 ",800,"Internet Transfer To 1854"]
[null,"4/24 ",16.23,"POS PURCHASE OAK HILL MARKET PASO ROBLES CA 832598 *****8244 0"]
[null,"4/24 ",16.61,"POS PURCHASE LOWE'S #27 PASO ROBLES CA 001 *****8244 0"]
[null,"4/24 ",50,"POS PURCHASE Third Base Market and S Paso Robles CA 679613 *****8244 0"]
[null,"4/25 ",6.62,"POS PURCHASE OAK HILL MARKET PASO ROBLES CA 832598 *****8244 0"]
[null,"4/25 ",15.56,"POS PURCHASE GOLDEN HILLS MKT PASO ROBLES CA 107259 *****8244 0"]
[null,"4/25 ",20.62,"POS PURCHASE GROCERY OUTLET OF PASO PASO ROBLES CA 820627 *****8244 0"]
[null,"4/25 ",57.31,"POS PURCHASE SMART AND FINAL 939 PASO ROBLES CA 482200 *****8244 0"]
[null,"4/25 ",58.61,"POS PURCHASE GROCERY OUTLET OF PASO PASO ROBLES CA 820627 *****8244 0"]
[null,"4/25 ",43,"POS PURCHASE GOLDEN HIL PASO ROBLES CA 00N1GR *****8244 0"]
[null,"4/25 ",44.35,"POS PURCHASE Third Base Market and S Paso Robles CA 679613 *****8244 0"]
[null,"4/25 ",423.9,"Internet Transfer To 1684"]
[null,"4/25 ",500,"Internet Transfer To 1684"]
[null,"4/26 ",13.25,"POS PURCHASE GOLDEN HILL 76 PASO ROBLES CA 00N1GR *****8244 0"]
[null,"4/26 ",29.99,"POS PURCHASE OAK HILL MARKET PASO ROBLES CA 832598 *****8244 0"]
[null,"4/26 ",5.27,"POS PURCHASE THIRD BASE MARKET AND S PASO ROBLES CA 00 *****8244 0"]
[null,"4/26 ",19.809999999999999,"POS PURCHASE CIDER CREEK BAKERY PASO ROBLES CA IN7200 *****8244 0"]
[null,"4/26 ",50,"POS PURCHASE Third Base Market and S Paso Robles CA 679613 *****8244 0"]
[null,"4/29 ",10,"POS PURCHASE GOLDEN HILL 76 PASO ROBLES CA 00N1GR *****8244 0"]
[null,"4/29 ",40,"POS PURCHASE Third Base Market and S Paso Robles CA 679613 *****8244 0"]
[null,"4/29 ",42,"POS PURCHASE GOLDEN HIL PASO ROBLES CA 00N1GR *****8244 0"]
[null,"4/29 ",45.58,"POS PURCHASE Third Base Market and S Paso Robles CA 679613 *****8244 0"]
[null,"4/29 ",1500,"Internet Transfer To 1854"]
[null,"4/30 ",5.75,"POS PURCHASE GOLDEN HILL 76 PASO ROBLES CA 00N1GR *****8244 0"]
[null,"4/30 ",28.44,"POS PURCHASE OAK HILL MARKET PASO ROBLES CA 832598 *****8244 0"]
[null,"4/30 ",44.35,"POS PURCHASE Third Base Market and S Paso Robles CA 679613 *****8244 0"]
[null,"4/30 ",45.3,"POS PURCHASE TEMPLETON MARKET TEMPLETON CA 668487 *****8244 0"]
[null,"4/30 ",2177.19,"HEADWAYCAPITAL"]
[null,"4/30 ",10,"BALANCE REQUIREMENT FEE"]
[null,"4/30 ",2,"PAPER STATEMENT FEE"]
[null,"5/01 ",5.43,"POS PURCHASE OAK HILL MARKET PASO ROBLES CA 832598 *****8244 0"]
[null,"5/01 ",15.5,"POS PURCHASE GOLDEN HIL PASO ROBLES CA 00N1GR *****8244 0"]
[null,"5/01 ",29.93,"POS PURCHASE LOWE'S #27 PASO ROBLES CA 001 *****8244 0"]
[null,"5/01 ",31.46,"POS PURCHASE SPENCER S FRESH MARKETS MORRO BAY CA 447745 *****8244 0"]
[null,"5/01 ",37.01,"POS PURCHASE GROCERY OUTLET OF PASO PASO ROBLES CA 820627 *****8244 0"]
[null,"5/01 ",37.5,"POS PURCHASE GOLDEN HIL PASO ROBLES CA 00N1GR *****8244 0"]
[null,"5/01 ",1000,"POS PURCHASE Third Base Market and S Paso Robles CA 679613 *****8244 0"]
[null,"5/01 ",40,"POS PURCHASE Third Base Market and S Paso Robles CA 679613 *****8244 0"]
[null,"5/01 ",2315.8000000000002,"Internet Transfer To 1854"]
[null,"5/01 ",2437.3000000000002,"Internet Transfer To 1684"]
[null,"5/01 ",8444,"Internet Transfer To 1854"]
[null,"5/02 ",30.32,"POS PURCHASE SMART AND FINAL 939 PASO ROBLES CA 482200 *****8244 0"]
[null,"5/02 ",47.74,"POS PURCHASE EL CAMINO BUILDING SUPP Atascadero CA 000100 *****8244 0"]
[null,"5/02 ",5.66,"POS PURCHASE J`S BURGERS #1 PASO ROBLES CA IN8000 *****8244 0"]
[null,"5/02 ",34.79,"POS PURCHASE RITE AID 05831 PASO ROBLES CA 548997 *****8244 0"]
[null,"5/02 ",40,"POS PURCHASE Third Base Market and S Paso Robles CA 679613 *****8244 0"]
[null,"5/03 ",53.93,"POS PURCHASE OAK HILL MARKET PASO ROBLES CA 832598 *****8244 0"]
[null,"5/03 ",37,"POS PURCHASE GOLDEN HIL PASO ROBLES CA 00N1GR *****8244 0"]
[null,"5/03 ",63.75,"POS PURCHASE Third Base Market and S Paso Robles CA 679613 *****8244 0"]
[null,"5/06 ",4.8899999999999997,"POS PURCHASE EL CAMINO BUILDING SUPP Atascadero CA 000100 *****8244 0"]
[null,"5/06 ",14.09,"POS PURCHASE SQ *TOP DOG COFFEE BAR Morro Bay CA INB200 *****8244 0"]
[null,"5/06 ",40,"POS PURCHASE TEMPLETON MARKET TEMPLETON CA 668487 *****8244 0"]
[null,"5/06 ",47.5,"POS PURCHASE GOLDEN HIL PASO ROBLES CA 00N1GR *****8244 0"]
[null,"5/06 ",634.66999999999996,"Internet Transfer To 1854"]
[null,"5/06 ",1800,"Internet Transfer To 1854"]
[null,"5/07 ",6.57,"POS PURCHASE GOLDEN HILLS MKT PASO ROBLES CA 107259 *****8244 0"]
[null,"5/07 ",11.09,"POS PURCHASE EL CAMINO BUILDING SUPP Atascadero CA 000100 *****8244 0"]
[null,"5/07 ",9.49,"POS PURCHASE BOTTLE LIQUOR INC MORRO BAY CA INC600 *****8244 0"]
[null,"5/07 ",49.6,"POS PURCHASE Third Base Market and S Paso Robles CA 679613 *****8244 0"]
[null,"5/07 ",53.5,"POS PURCHASE TEMPLETON MARKET TEMPLETON CA 668487 *****8244 0"]
[null,"5/07 ",61.87,"POS PURCHASE TST* OFF THE 46 MEXICAN Paso Robles CA IN0400 *****8244 0"]
[null,"5/08 ",8.4600000000000009,"POS PURCHASE TEMPLETON MARKET TEMPLETON CA 668487 *****8244 0"]
[null,"5/08 ",33.5,"POS PURCHASE GOLDEN HIL PASO ROBLES CA 00N1GR *****8244 0"]
[null,"5/08 ",84.79,"POS PURCHASE LOWE'S #27 PASO ROBLES CA 001 *****8244 0"]
[null,"5/08 ",7.33,"POS PURCHASE BLAKE'S TRUE VALUE PASO ROBLES CA 000045 *****8244 0"]
[null,"5/08 ",19.440000000000001,"POS PURCHASE ZIO BRAND MEATS PASO ROBLES CA 000057 *****8244 0"]
[null,"5/08 ",40,"POS PURCHASE Third Base Market and S Paso Robles CA 679613 *****8244 0"]
[null,"5/08 ",155,"POS PURCHASE BLVD *RIVER OAKS HOT PASO ROBLES CA 533085 *****2385 0"]
[null,"5/08 ",215.3,"POS PURCHASE HARBOR FREIGHT TOOLS321 PASO ROBLES CA 000009 *****8244 0"]
[null,"5/08 ",1445.39,"Internet Transfer To 1854"]
[null,"5/09 ",7.98,"POS PURCHASE SMART AND FINAL 939 PASO ROBLES CA 482200 *****8244 0"]
[null,"5/09 ",4,"POS PURCHASE SQ *TOP DOG COFFEE BAR Morro Bay CA INC700 *****8244 0"]
[null,"5/09 ",14.38,"POS PURCHASE SQ *TOP DOG COFFEE BAR Morro Bay CA IN1200 *****8244 0"]
[null,"5/09 ",42.99,"POS PURCHASE TEMPLETON MARKET TEMPLETON CA 668487 *****8244 0"]
[null,"5/09 ",49,"POS PURCHASE GOLDEN HIL PASO ROBLES CA 00N1GR *****8244 0"]
[null,"5/09 ",346.46,"POS PURCHASE YANAGI SUSHI INC PASO ROBLES CA 751295 *****8244 0"]
[null,"5/09 ",361.02,"POS PURCHASE STATE FARM INSURANCE 800-956-6310 IL 00 *****2385 0"]
[null,"5/10 ",24.89,"POS PURCHASE BLAKE'S TRUE VALUE PASO ROBLES CA 000045 *****8244 0"]
[null,"5/10 ",59.85,"POS PURCHASE TEMPLETON MARKET TEMPLETON CA 668487 *****8244 0"]
[null,"5/10 ",1910,"Internet Transfer To 1854"]
[null,"5/13 ",43.09,"POS PURCHASE Third Base Market and S Paso Robles CA 679613 *****8244 0"]
[null,"5/13 ",381.89,"Best Egg PAYMENT 45087375A SCOTT BRANDON"]
[null,"5/14 ",9,"POS PURCHASE TEMPLETON MARKET TEMPLETON CA 668487 *****8244 0"]
[null,"5/14 ",40,"POS PURCHASE Third Base Market and S Paso Robles CA 679613 *****8244 0"]
[null,"5/14 ",0.65,"Internet Transfer To 1684"]
[null,"5/15 ",40,"POS PURCHASE TEMPLETON MARKET TEMPLETON CA 668487 *****8244 0"]
[null,"5/17 ",28.26,"POS PURCHASE GOLDEN HIL PASO ROBLES CA 00N1GR *****8244 0"]
[null,"5/17 ",28.59,"POS PURCHASE CV"]
[null,"5/17 ",23.52,"POS PURCHASE WAL-MART #2099 PASO ROBLES CA 242099 *****2385 0"]
[null,"5/17 ",500,"Internet Transfer To 1684"]
[null,"5/17 ",4899.29,"Internet Transfer To 1854"]
[null,"5/20 ",7.23,"POS PURCHASE TEMPLETON MARKET TEMPLETON CA 668487 *****8244 0"]
[null,"5/20 ",43.25,"POS PURCHASE GOLDEN HIL PASO ROBLES CA 00N1GR *****8244 0"]
[null,"5/20 ",87.83,"POS PURCHASE BASS PRO STORE LAS VEG LAS VEGAS NV 030254 *****2385 0"]
[null,"5/20 ",40,"POS PURCHASE CHEVRON 0373406 ATASCADERO CA IN0002 *****8244 0"]
[null,"5/20 ",40,"POS PURCHASE CHEVRON 0373406 ATASCADERO CA INB900 *****8244 0"]
[null,"5/20 ",42,"POS PURCHASE GOLDEN HIL PASO ROBLES CA 00N1GR *****8244 0"]
[null,"5/20 ",47.08,"POS PURCHASE JERSEY MIKES 20303 PASO ROBLES CA 000065 *****8244 0"]
[null,"5/20 ",107.43,"POS PURCHASE Third Base Market and S Paso Robles CA 679613 *****8244 0"]
[null,"5/20 ",12164.95,"Internet Transfer To 1854"]
[null,"5/21 ",6.5,"POS PURCHASE GOLDEN HILL 76 PASO ROBLES CA 00N1GR *****8244 0"]
[null,"5/21 ",31.96,"POS PURCHASE ALBERTSONS #0314 PASO ROBLES CA 213984 *****2385 0"]
[null,"5/21 ",28,"POS PURCHASE GOLDEN HIL PASO ROBLES CA 00N1GR *****8244 0"]
[null,"5/21 ",358.35,"Internet Transfer To 1854"]
[null,"5/22 ",8.4,"POS PURCHASE LOWE'S #27 PASO ROBLES CA 001 *****8244 0"]
[null,"5/22 ",34.25,"POS PURCHASE GOLDEN HIL PASO ROBLES CA 00N1GR *****8244 0"]
[null,"5/22 ",33,"POS PURCHASE GOLDEN HIL PASO ROBLES CA 00N1GR *****8244 0"]
[null,"5/23 ",6.41,"POS PURCHASE TEMPLETON MARKET TEMPLETON CA 668487 *****8244 0"]
[null,"5/23 ",16.95,"POS PURCHASE TRACTOR SUPPLY CO #1609 PASO ROBLES CA 090003 *****8244 0"]
[null,"5/23 ",17.29,"POS PURCHASE EL CAMINO BUILDING SUPP Atascadero CA 000100 *****8244 0"]
[null,"5/23 ",35,"POS PURCHASE GOLDEN HIL PASO ROBLES CA 00N1GR *****8244 0"]
[null,"5/23 ",39.04,"PPB #6601444972 PAYMENT"]
[null,"5/24 ",46.77,"POS PURCHASE Third Base Market and S Paso Robles CA 679613 *****8244 0"]
[null,"5/24 ",50,"POS PURCHASE Third Base Market and S Paso Robles CA 679613 *****2385 0"]
[null,"5/28 ",5,"POS PURCHASE CV"]
[null,"5/28 ",16.18,"POS PURCHASE BLAKE'S TRUE VALUE PASO ROBLES CA 000045 *****8244 0"]
[null,"5/28 ",53.02,"POS PURCHASE TEMPLETON MARKET TEMPLETON CA 668487 *****8244 0"]
[null,"5/28 ",56.29,"POS PURCHASE Third Base Market and S Paso Robles CA 679613 *****8244 0"]
[null,"5/31 ",2437.3000000000002,"Internet Transfer To 1684"]
[null,"5/31 ",1901.79,"HEADWAYCAPITAL"]
[null,"5/31 ",10,"BALANCE REQUIREMENT FEE"]
[null,"5/31 ",2,"PAPER STATEMENT FEE"]
[null,"6/03 ",34.5,"POS PURCHASE GOLDEN HIL PASO ROBLES CA 00N1GR *****8244 0"]
[null,"6/03 ",50,"POS PURCHASE Third Base Market and S Paso Robles CA 679613 *****8244 0"]
[null,"6/03 ",278.06,"POS PURCHASE VZWRLSS*BILL PAY VB 800-922-0204 FL IN4400 *****2385 0"]
[null,"6/03 ",12,"Internet Transfer To 1854"]
[null,"6/04 ",71.989999999999995,"POS PURCHASE VETERINARY MEDICAL CENT ATASCADERO CA 528635 *****2385 0"]
[null,"6/04 ",13039.65,"Internet Transfer To 1854"]
[null,"6/05 ",38,"POS PURCHASE GOLDEN HIL PASO ROBLES CA 00N1GR *****8244 0"]
[null,"6/05 ",166.67,"POS PURCHASE FOOD 4 LESS 0012 PASO ROBLES CA 986142 *****2385 0"]
[null,"6/05 ",78.19,"POS PURCHASE GOLDEN HIL PASO ROBLES CA 00N1GR *****8244 0"]
[null,"6/05 ",779.7,"Internet Transfer To 1684"]
[null,"6/05 ",11057.86,"Internet Transfer To 1854"]
[null,"6/06 ",32,"POS PURCHASE GOLDEN HIL PASO ROBLES CA 00N1GR *****8244 0"]
[null,"6/06 ",39,"POS PURCHASE GOLDEN HIL PASO ROBLES CA 00N1GR *****8244 0"]
[null,"6/06 ",40,"POS PURCHASE Third Base Market and S Paso Robles CA"]
[null,"6/07 ",28.5,"POS PURCHASE GOLDEN HIL PASO ROBLES CA 00N1GR *****8244 0"]
[{"$f":"SUBTOTAL(9,#REF!)","v":{"$error":"#REF!"}},"6/07 ",35.32,"POS PURCHASE O'REILLY 2583 PASO ROBLES CA 029207 *****8244 0"]
[null,"6/07 ",19.03,"POS PURCHASE SQ *THE BLUEPRINTER & G Paso Robles CA IN7900 *****8244 0"]
[null,"6/07 ",49.91,"POS PURCHASE TEMPLETON MARKET TEMPLETON CA 668487 *****8244 0"]
[null,"6/07 ",1429.71,"Internet Transfer To 1854"]
[null,"6/10 ",500,{"$error":"#VALUE!"}]
[null,"6/10 ",9.1,"POS PURCHASE LOWE'S #27 PASO ROBLES CA 001 *****8244 0"]
[null,"6/10 ",36,"POS PURCHASE GOLDEN HIL PASO ROBLES CA 00N1GR *****8244 0"]
[null,"6/10 ",44.36,"POS PURCHASE OAK HILL MARKET PASO ROBLES CA 832598 *****8244 0"]
[null,"6/10 ",40,"POS PURCHASE Third Base Market and S Paso Robles CA 679613 *****8244 0"]
[null,"6/10 ",49.99,"POS PURCHASE TEMPLETON MARKET TEMPLETON CA 668487 *****8244 0"]
[null,"6/10 ",59.03,"POS PURCHASE TEMPLETON MARKET TEMPLETON CA 668487 *****8244 0"]
[null,"6/10 ",63.52,"POS PURCHASE TEMPLETON MARKET TEMPLETON CA 668487 *****8244 0"]
[null,"6/10 ",148,"Internet Transfer To 1684"]
[null,"6/10 ",550,"Internet Transfer To 1854"]
[null,"6/11 ",25.5,"POS PURCHASE GOLDEN HIL PASO ROBLES CA 00N1GR *****8244 0"]
[null,"6/11 ",34.5,"POS PURCHASE GOLDEN HIL PASO ROBLES CA 00N1GR *****8244 0"]
[null,"6/11 ",40.69,"POS PURCHASE SPENCER S FRESH MARKETS MORRO BAY CA 447745 *****8244 0"]
[null,"6/11 ",40,"POS PURCHASE MORRO BAY MOBIL MORRO BAY CA 107235 *****8244 0"]
[null,"6/11 ",228.82,"Internet Transfer To 1854"]
[null,"6/11 ",810.27,"Internet Transfer To 1684"]
[null,"6/11 ",381.89,"Best Egg PAYMENT 45087375A SCOTT BRANDON"]
[null,"6/12 ",10,"POS PURCHASE GOLDEN HILL 76 PASO ROBLES CA 00N1GR *****8244 0"]
[null,"6/12 ",11.83,"POS PURCHASE OAK HILL MARKET PASO ROBLES CA 832598 *****8244 0"]
[null,"6/12 ",28.75,"POS PURCHASE GOLDEN HIL PASO ROBLES CA 00N1GR *****8244 0"]
[null,"6/12 ",36.65,"POS PURCHASE FOOD 4 LESS 0012 PASO ROBLES CA 986142 *****8244 0"]
[null,"6/12 ",44.34,"POS PURCHASE Third Base Market and S Paso Robles CA 679613 *****8244 0"]
[null,"6/12 ",85,"Internet Transfer To 1684"]
[null,"6/12 ",215.13,"Internet Transfer To 1854"]
[null,"6/13 ",13.57,"POS PURCHASE OAK HILL MARKET PASO ROBLES CA 832598 *****8244 0"]
[null,"6/13 ",13.68,"POS PURCHASE TEMPLETON MARKET TEMPLETON CA 668487 *****8244 0"]
[null,"6/13 ",32.89,"POS PURCHASE Third Base Market and S Paso Robles CA 679613 *****8244 0"]
[null,"6/13 ",33.229999999999997,"POS PURCHASE Third Base Market and S Paso Robles CA 679613 *****8244 0"]
[null,"6/13 ",50,"POS PURCHASE GOLDEN HIL PASO ROBLES CA 00N1GR *****8244 0"]
[null,"6/14 ",23.74,"POS PURCHASE SMART AND FINAL 939 PASO ROBLES CA 482200 *****8244 0"]
[null,"6/14 ",36,"POS PURCHASE GOLDEN HIL PASO ROBLES CA 00N1GR *****8244 0"]
[null,"6/14 ",49.76,"POS PURCHASE LA MEXICANA PASO ROBLES CA IN0700 *****8244 0"]
[null,"6/14 ",82,"Internet Transfer To 1854"]
[null,"6/17 ",25.45,"POS PURCHASE TEMPLETON MARKET TEMPLETON CA 668487 *****8244 0"]
[null,"6/17 ",28.01,"POS PURCHASE CV"]
[null,"6/17 ",89.73,"POS PURCHASE SMART AND FINAL 939 PASO ROBLES CA 482200 *****8244 0"]
[null,"6/17 ",2305.0700000000002,"POS PURCHASE EL CAMINO BUILDING SUPP Atascadero CA 000100 *****8244 0"]
[null,"6/17 ",15,"POS PURCHASE PACIFIC EYE 805-5458100 CA 706307 *****2385 0"]
[null,"6/17 ",46.25,"POS PURCHASE GOLDEN HIL PASO ROBLES CA 00N1GR *****8244 0"]
[null,"6/17 ",51.95,"POS PURCHASE Third Base Market and S Paso Robles CA 679613 *****8244 0"]
[null,"6/17 ",54.34,"POS PURCHASE Third Base Market and S Paso Robles CA 679613 *****8244 0"]
[null,"6/17 ",56.45,"POS PURCHASE Third Base Market and S Paso Robles CA 679613 *****8244 0"]
[null,"6/18 ",7.7,"POS PURCHASE CV"]
[null,"6/18 ",21.92,"POS PURCHASE GROCERY OUTLET OF PASO PASO ROBLES CA 820627 *****8244 0"]
[null,"6/18 ",33.33,"POS PURCHASE EL CAMINO BUILDING SUPP Atascadero CA 000100 *****8244 0"]
[null,"6/18 ",35.69,"POS PURCHASE GOLDEN HIL PASO ROBLES CA 00N1GR *****8244 0"]
[null,"6/18 ",43.49,"POS PURCHASE TRACTOR SUPPLY CO #1609 PASO ROBLES CA 090001 *****8244 0"]
[null,"6/18 ",63.06,"POS PURCHASE Lemos Feed & Pet Supply Paso Robles CA 000100 *****8244 0"]
[null,"6/18 ",52.5,"POS PURCHASE ARCO #42072 AMPM PASO ROBLES CA 94048 *****8244 0"]
[null,"6/18 ",489.88,"POS PURCHASE STATE FARM INSURANCE 800-956-6310 IL 00 *****2385 0"]
[null,"6/20 ",29,"POS PURCHASE GOLDEN HIL PASO ROBLES CA 00N1GR *****8244 0"]
[null,"6/20 ",67.92,"POS PURCHASE SMART AND FINAL 939 PASO ROBLES CA 482200 *****8244 0"]
[null,"6/20 ",75.540000000000006,"POS PURCHASE COSTCO WHSE #0741 SAN LUIS OBIS CA 990741 *****8244 0"]
[null,"6/20 ",117.43,"POS PURCHASE COSTCO WHSE #0741 SAN LUIS OBIS CA 990741 *****8244 0"]
[null,"6/20 ",1.49,"POS PURCHASE THIRD BASE MARKET AND S PASO ROBLES CA 00 *****8244 0"]
[null,"6/20 ",36.83,"POS PURCHASE TEMPLETON MARKET TEMPLETON CA 668487 *****8244 0"]
[null,"6/20 ",40,"POS PURCHASE Third Base Market and S Paso Robles CA 679613 *****8244 0"]
[null,"6/20 ",9759.2000000000007,"Internet Transfer To 1854"]
[null,"6/21 ",63.72,"POS PURCHASE COSTCO WHSE #0741 SAN LUIS OBIS CA 990741 *****8244 0"]
[null,"6/21 ",40,"POS PURCHASE Third Base Market and S Paso Robles CA 679613 *****8244 0"]
[null,"6/21 ",51.87,"POS PURCHASE TEMPLETON MARKET TEMPLETON CA 668487 *****8244 0"]
[null,"6/21 ",233.57,"Internet Transfer To 1684"]
[null,"6/21 ",316,"Internet Transfer To 1684"]
[null,"6/21 ",794.29,"Internet Transfer To 1854"]
[null,"6/24 ",11.3,"POS PURCHASE GOLDEN HILLS MKT PASO ROBLES CA 107259 *****8244 0"]
[null,"6/24 ",14.65,"POS PURCHASE LOWE'S #27 PASO ROBLES CA 001 *****8244 0"]
[null,"6/24 ",23.09,"POS PURCHASE GROCERY OUTLET OF PASO PASO ROBLES CA 820627 *****8244 0"]
[null,"6/24 ",26.61,"POS PURCHASE THE HOME DEPOT #1031 ATASCADERO CA 061394 *****8244 0"]
[null,"6/24 ",29.75,"POS PURCHASE GOLDEN HIL PASO ROBLES CA 00N1GR *****8244 0"]
[null,"6/24 ",41.28,"POS PURCHASE LOWE'S #27 PASO ROBLES CA 001 *****2385 0"]
[null,"6/24 ",58.06,"POS PURCHASE RITE AID 05832 PASO ROBLES CA 549000 *****8244 0"]
[null,"6/24 ",104.7,"POS PURCHASE LOWE'S #27 PASO ROBLES CA 001 *****2385 0"]
[null,"6/24 ",5,"POS PURCHASE TST* MULLIGANS - AVILA AVILA BEACH CA 264479 *****8244 0"]
[null,"6/24 ",18.079999999999998,"POS PURCHASE TST* THE HUMAN BEAN - T TEMPLETON CA 787516 *****8244 0"]
[null,"6/24 ",18.72,"POS PURCHASE TST* MULLIGANS - AVILA AVILA BEACH CA 264479 *****8244 0"]
[null,"6/24 ",27.19,"POS PURCHASE RITE AID 05831 PASO ROBLES CA 548997 *****8244 0"]
[null,"6/24 ",52.53,"POS PURCHASE TEMPLETON MARKET TEMPLETON CA 668487 *****8244 0"]
[null,"6/24 ",69.23,"POS PURCHASE CALIFORNIA COAST BEER PASO ROBLES CA 773399 *****8244 0"]
[null,"6/25 ",1258.06,"LEVY-IRS"]
[null,"6/28 ",42.79,"POS PURCHASE TEMPLETON MARKET TEMPLETON CA 668487 *****8244 0"]
[null,"6/28 ",25.83,"PPB #6601444972 PAYMENT"]
[null,"6/28 ",10,"BALANCE REQUIREMENT FEE"]
[null,"6/28 ",2,{"$error":"#VALUE!"}]
[null,"7/01 ",1342.27,"Internet Transfer To 1854"]
[null,"7/01 ",1960.6,"HEADWAYCAPITAL"]
[null,"7/01 ",35,"NSF Fee for 1 item(s) at $ each"]
[null,"7/01 ",77.11,"POS PURCHASE PASO ROBLES BREW CO. LL PASO ROBLES CA IN9000 *****8244 0"]
[null,"7/08 ",212.92,"Internet Transfer To 1854"]
[null,"7/08 ",782.53,"Internet Transfer To 1684"]
[null,"7/08 ",9362.2900000000009,"Internet Transfer To 1854"]
[null,"7/08 ",48.46,"POS PURCHASE Third Base Market and S Paso Robles CA 679613 *****8244 0"]
[null,"7/09 ",167,"TELLER WITHDRAWL"]
[null,"7/09 ",200,"Internet Transfer To 1684"]
[null,"7/09 ",7.22,"POS PURCHASE OAK HILL MARKET PASO ROBLES CA 832598 *****8244 0"]
[null,"7/09 ",35.729999999999997,"POS PURCHASE OAK HILL MARKET PASO ROBLES CA 832598 *****8244 0"]
[null,"7/09 ",50.98,"POS PURCHASE LOWE'S #27 PASO ROBLES CA 001 *****2385 0"]
[null,"7/09 ",40,"POS PURCHASE Third Base Market and S Paso Robles CA 679613 *****8244 0"]
[null,"7/10 ",1960.6,"HEADWAYCAPITAL"]
[null,"7/10 ",35,"NSF Fee for 1 item(s) at $ each"]
[null,"7/11 ",381.89,"Best Egg PAYMENT 45087375A SCOTT BRANDON"]
[null,"7/12 ",100.85,"POS PURCHASE STAPLES 1385 ATASCADERO CA 081596 *****2385 0"]
[null,"7/12 ",61.74,"POS PURCHASE Third Base Market and S Paso Robles CA 679613 *****8244 0"]
[null,"7/15 ",51.01,"POS PURCHASE GOLDEN HIL PASO ROBLES CA 00N1GR *****8244 0"]
[null,"7/15 ",51.55,"POS PURCHASE Third Base Market and S Paso Robles CA 679613 *****8244 0"]
[null,"7/15 ",279.86,"POS PURCHASE VZWRLSS*BILL PAY VB 800-922-0204 FL IN7700 *****2385 0"]
[null,"7/16 ",86,"Internet Transfer To 1684"]
[null,"7/16 ",288,"Internet Transfer To 1854"]
[null,"7/16 ",41.24,"POS PURCHASE GOLDEN HIL PASO ROBLES CA 00N1GR *****8244 0"]
[null,"7/17 ",1960.6,"HEADWAYCAPITAL"]
[null,"7/17 ",35,"NSF Fee for 1 item(s) at $ each"]
[null,"7/17 ",21.66,"POS PURCHASE LOWE'S #27 PASO ROBLES CA 001 *****2385 0"]
[null,"7/18 ",15,"POS PURCHASE N.CTY PHYSICAL THERAPY PASO ROBLES CA 041422 *****2385 0"]
[null,"7/18 ",115.55,"POS PURCHASE EL CAMINO BUILDING SUPP Atascadero CA 000100 *****8244 0"]
[null,"7/18 ",49.78,"POS PURCHASE Third Base Market and S Paso Robles CA 679613 *****8244 0"]
[null,"7/18 ",469.51,"POS PURCHASE STATE FARM INSURANCE 800-956-6310 IL 00 *****2385 0"]
[null,"7/19 ",5.99,"POS PURCHASE GOLDEN HILL 76 PASO ROBLES CA 00N1GR *****8244 0"]
[null,"7/19 ",21.96,"POS PURCHASE TEMPLETON MARKET TEMPLETON CA 668487 *****8244 0"]
[null,"7/19 ",40,"POS PURCHASE Third Base Market and S Paso Robles CA 679613 *****8244 0"]
[null,"7/19 ",44.21,"POS PURCHASE TEMPLETON MARKET TEMPLETON CA 668487 *****8244 0"]
[null,"7/22 ",200,"Internet Transfer To 1854"]
[null,"7/22 ",300,"Internet Transfer To 1684"]
[null,"7/22 ",380,"Internet Transfer To 1854"]
[null,"7/22 ",400,"Internet Transfer To 1684"]
[null,"7/22 ",9001.49,"Internet Transfer To 1854"]
[null,"7/22 ",6.22,"POS PURCHASE CV"]
[null,"7/22 ",13.64,"POS PURCHASE GROCERY OUTLET OF PASO PASO ROBLES CA 820627 *****2385 0"]
[null,"7/22 ",20.98,"POS PURCHASE OAK HILL MARKET PASO ROBLES CA 832598 *****8244 0"]
[null,"7/22 ",32.5,"POS PURCHASE GOLDEN HIL PASO ROBLES CA 00N1GR *****8244 0"]
[null,"7/22 ",26.81,"POS PURCHASE RITE AID 05831 PASO ROBLES CA 548997 *****8244 0"]
[null,"7/22 ",49.78,"POS PURCHASE Third Base Market and S Paso Robles CA 679613 *****8244 0"]
[null,"7/22 ",59.75,"POS PURCHASE GOLDEN HIL PASO ROBLES CA 00N1GR *****8244 0"]
[null,"7/23 ",980.3,"HEADWAYCAPITAL"]
[null,"7/23 ",35,"NSF Fee for 1 item(s) at $ each"]
[null,"7/23 ",15.54,"POS PURCHASE THIRD BASE MARKET AND S PASO ROBLES CA 00 *****8244 0"]
[null,"7/23 ",79.84,"POS PURCHASE GOVTPERMIT"]
[null,"7/24 ",498.3,"Internet Transfer To 1684"]
[null,"7/24 ",980.3,"Internet Transfer To 1854"]
[null,"7/24 ",26.84,"PPB #6601444972 PAYMENT"]
[null,"7/24 ",46.24,"POS PURCHASE GOLDEN HIL PASO ROBLES CA 00N1GR *****8244 0"]
[null,"7/24 ",63.06,"POS PURCHASE Lemos Feed & Pet Supply Paso Robles CA 000100 *****8244 0"]
[null,"7/25 ",28.23,"POS PURCHASE LOWE'S #27 PASO ROBLES CA 001 *****8244 0"]
[null,"7/25 ",33.24,"POS PURCHASE GOLDEN HIL PASO ROBLES CA 00N1GR *****8244 0"]
[null,"7/25 ",40.25,"POS PURCHASE GOLDEN HIL PASO ROBLES CA 00N1GR *****8244 0"]
[null,"7/25 ",50,"POS PURCHASE Third Base Market and S Paso Robles CA 679613 *****8244 0"]
[null,"7/25 ",66.64,"POS PURCHASE TEMPLETON MARKET TEMPLETON CA 668487 *****8244 0"]
[null,"7/26 ",8,"POS PURCHASE GOLDEN HILL 76 PASO ROBLES CA 00N1GR"]
[null,"7/26 ",13.24,"POS PURCHASE GOLDEN HILL 76 PASO ROBLES CA 00N1GR *****8244 0"]
[null,"7/26 ",39.659999999999997,"POS PURCHASE OAK HILL MARKET PASO ROBLES CA 832598 *****8244 0"]
[null,"7/26 ",40,"POS PURCHASE Third Base Market and S Paso Robles CA 679613 *****8244 0"]
[null,"7/26 ",48.73,"POS PURCHASE Third Base Market and S Paso Robles CA 679613 *****8244 0"]
[null,"7/29 ",15.74,"POS PURCHASE GOLDEN HIL PASO ROBLES CA 00N1GR *****8244 0"]
[null,"7/29 ",31,"POS PURCHASE GOLDEN HIL PASO ROBLES CA 00N1GR *****8244 0"]
[null,"7/29 ",50.48,"POS PURCHASE LOWE'S #27 PASO ROBLES CA 001 *****2385 0"]
[null,"7/29 ",59.73,"POS PURCHASE THE HOME DEPOT #1031 ATASCADERO CA 061394 *****2385 0"]
[null,"7/29 ",15,"POS PURCHASE SQ *NEGRANTI CREAMERY Paso Robles CA IN1630 *****8244 0"]
[null,"7/29 ",980.3,"POS PURCHASE HEADWAY CAPITAL 866-6988494 IL 632700 *****2385 0"]
[null,"7/30 ",1340.15,"Internet Transfer To 1854"]
[null,"7/30 ",2400,"Internet Transfer To 1684"]
[null,"7/30 ",8810.23,"Internet Transfer To 1854"]
[null,"7/30 ",8.31,"POS PURCHASE TEMPLETON MARKET TEMPLETON CA 668487 *****8244 0"]
[null,"7/30 ",1000,"POS PURCHASE Third Base Market and S Paso Robles CA 679613 *****8244 0"]
[null,"7/30 ",1595.36,"POS PURCHASE EL CAMINO BUILDING SUPP Atascadero CA 000100 *****8244 0"]
[null,"7/30 ",46.93,"POS PURCHASE Third Base Market and S Paso Robles CA 679613 *****8244 0"]
[null,"7/30 ",59.5,"POS PURCHASE Third Base Market and S Paso Robles CA 679613 *****8244 0"]
[null,"7/31 ",200,"Internet Transfer To 1684"]
[null,"7/31 ",980.3,"HEADWAYCAPITAL"]
[null,"7/31 ",10,"BALANCE REQUIREMENT FEE"]
[null,"7/31 ",56.12,"POS PURCHASE Third Base Market and S Paso Robles CA 679613 *****8244 0"]
[null,"8/01 ",12,"Internet Transfer To 1854"]
[null,"8/05 ",96,"Internet Transfer To 1684"]
[null,"8/05 ",779.7,"Internet Transfer To 1854"]
[null,"8/05 ",441.75,"STATE FARM RO 0"]
[null,"8/05 ",17.84,"POS PURCHASE LOWE'S #27 PASO ROBLES CA 001 *****8244 0"]
[null,"8/05 ",41.1,"POS PURCHASE O'REILLY 3581 RENO NV 025902 *****8244 0"]
[null,"8/05 ",55.33,"POS PURCHASE Third Base Market and S Paso Robles CA 679613 *****8244 0"]
[null,"8/05 ",78.78,"POS PURCHASE SHELL OIL 57443222401 RENO NV INC000 *****8244 0"]
[null,"8/05 ",287.95,"POS PURCHASE VZWRLSS*BILL PAY VB 800-922-0204 FL IND100 *****2385 0"]
[null,"8/05 ",456.15,"POS PURCHASE SUBURBAN PROPANE 800-776-7263 NJ IN8800 *****2385 0"]
[null,"8/06 ",288,"Internet Transfer To 1854"]
[null,"8/06 ",10213.370000000001,"Internet Transfer To 1854"]
[null,"8/06 ",8.2899999999999991,"POS PURCHASE TRACTOR SUPPLY CO #1609 PASO ROBLES CA 090001 *****8244 0"]
[null,"8/06 ",16,"POS PURCHASE SQ *JOEBELLA COFFEE PAS Paso Robles CA IN2000 *****8244 0"]
[null,"8/06 ",43,"POS PURCHASE GOLDEN HIL PASO ROBLES CA 00N1GR *****8244 0"]
[null,"8/06 ",44.34,"POS PURCHASE Third Base Market and S Paso Robles CA 679613 *****8244 0"]
[null,"8/06 ",45.5,"POS PURCHASE GOLDEN HIL PASO ROBLES CA 00N1GR *****8244 0"]
[null,"8/06 ",56.08,"POS PURCHASE Third Base Market and S Paso Robles CA 679613 *****8244 0"]
[null,"8/07 ",714.76,"Internet Transfer To 1854"]
[null,"8/07 ",18.600000000000001,"POS PURCHASE TEMPLETON MARKET TEMPLETON CA 668487 *****8244 0"]
[null,"8/07 ",126.12,"POS PURCHASE FOOD 4 LESS 0012 PASO ROBLES CA 986142 *****2385 0"]
[null,"8/07 ",1718.2,"POS PURCHASE EL CAMINO BUILDING SUPP Atascadero CA 000100 *****8244 0"]
[null,"8/07 ",48.03,"POS PURCHASE Third Base Market and S Paso Robles CA 679613 *****8244 0"]
[null,"8/08 ",20,"ATM WITHDRAWAL PACIFIC PREMI 898 MORRO BAY MORRO BAY IC1962 *****8244 0"]
[null,"8/08 ",4.5,"POS PURCHASE GROCERY OUTLET OF PASO PASO ROBLES CA 820627 *****8244 0"]
[null,"8/08 ",10.75,"POS PURCHASE RUDIES ROCK ESPRESSO MORRO BAY CA 053858 *****8244 0"]
[null,"8/08 ",21.21,"POS PURCHASE EL CAMINO BUILDING SUPP Atascadero CA 000100 *****8244 0"]
[null,"8/08 ",34.04,"POS PURCHASE TEMPLETON MARKET TEMPLETON CA 668487 *****8244 0"]
[null,"8/08 ",44.34,"POS PURCHASE Third Base Market and S Paso Robles CA 679613 *****8244 0"]
[null,"8/09 ",640,"TELLER WITHDRAWL"]
[null,"8/09 ",1500,"Internet Transfer To 1854"]
[null,"8/09 ",5.9,"POS PURCHASE TEMPLETON MARKET TEMPLETON CA 668487 *****8244 0"]
[null,"8/09 ",47.58,"POS PURCHASE Third Base Market and S Paso Robles CA 679613 *****8244 0"]
[null,"8/12 ",1960.6,"HEADWAYCAPITAL"]
[null,"8/12 ",45,"POS PURCHASE GOLDEN HIL PASO ROBLES CA 00N1GR *****8244 0"]
[null,"8/12 ",45.85,"POS PURCHASE LOWE'S #27 PASO ROBLES CA 001 *****8244 0"]
[null,"8/12 ",10.26,"POS PURCHASE SQ *TOP DOG COFFEE BAR Morro Bay CA INP900 *****8244 0"]
[null,"8/12 ",14.95,"POS PURCHASE SQ *JOEBELLA COFFEE PAS Paso Robles CA INB800 *****8244 0"]
[null,"8/12 ",20.74,"POS PURCHASE SQ *NEGRANTI CREAMERY Paso Robles CA IN0002 *****8244 0"]
[null,"8/12 ",23.25,"POS PURCHASE BOTTLE LIQUOR INC MORRO BAY CA IN7600 *****8244 0"]
[null,"8/12 ",23.62,"POS PURCHASE BLAKE'S TRUE VALUE PASO ROBLES CA 000045 *****8244 0"]
[null,"8/12 ",24.08,"POS PURCHASE PLEYTO STORE BRADLEY CA 00 *****8244 0"]
[null,"8/13 ",381.89,"Best Egg PAYMENT 45087375A SCOTT BRANDON"]
[null,"8/13 ",50.25,"POS PURCHASE GOLDEN HIL PASO ROBLES CA 00N1GR *****8244 0"]
[null,"8/14 ",100,"Internet Transfer To 1684"]
[null,"8/14 ",6679.08,"Internet Transfer To 1854"]
[null,"8/14 ",26.5,"POS PURCHASE GOLDEN HIL PASO ROBLES CA 00N1GR *****8244 0"]
[null,"8/14 ",54.21,"POS PURCHASE WAL-MART #2099 PASO ROBLES CA 242099 *****2385 0"]
[null,"8/14 ",12.65,"POS PURCHASE SQ *JOEBELLA COFFEE PAS Paso Robles CA INC000 *****8244 0"]
[null,"8/15 ",390,"Internet Transfer To 1684"]
[null,"8/15 ",6,"POS PURCHASE GOLDEN HIL PASO ROBLES CA 00N1GR *****8244 0"]
[null,"8/15 ",6,"POS PURCHASE GOLDEN HIL PASO ROBLES CA 00N1GR *****8244 0"]
[null,"8/15 ",12.65,"POS PURCHASE SQ *JOEBELLA COFFEE PAS Paso Robles CA IN9200 *****8244 0"]
[null,"8/15 ",44.34,"POS PURCHASE Third Base Market and S Paso Robles CA 679613 *****8244 0"]
[null,"8/15 ",60.51,"POS PURCHASE Third Base Market and S Paso Robles CA 679613 *****8244 0"]
[null,"8/16 ",10.24,"POS PURCHASE TEMPLETON MARKET TEMPLETON CA 668487 *****8244 0"]
[null,"8/16 ",23.79,"POS PURCHASE LOWE'S #27 PASO ROBLES CA 001 *****8244 0"]
[null,"8/16 ",25.75,"POS PURCHASE GOLDEN HIL PASO ROBLES CA 00N1GR *****8244 0"]
[null,"8/16 ",76.61,"POS PURCHASE EL CAMINO BUILDING SUPP Atascadero CA 000100 *****8244 0"]
[null,"8/16 ",40,"POS PURCHASE TEMPLETON MARKET TEMPLETON CA 668487 *****8244 0"]
[null,"8/19 ",100,"Internet Transfer To 1684"]
[null,"8/19 ",7.06,"POS PURCHASE O'REILLY 2583 PASO ROBLES CA 029207 *****8244 0"]
[null,"8/19 ",9.68,"POS PURCHASE USPS PO 05777004 101 N TEMPLETON CA 999999 *****2385 0"]
[null,"8/19 ",21.52,"POS PURCHASE SMART AND FINAL 392 PASO ROBLES CA 481922 *****8244 0"]
[null,"8/19 ",31.63,"POS PURCHASE TEMPLETON MARKET TEMPLETON CA 668487 *****8244 0"]
[null,"8/19 ",38.5,"POS PURCHASE GOLDEN HIL PASO ROBLES CA 00N1GR *****8244 0"]
[null,"8/19 ",40,"POS PURCHASE Third Base Market and S Paso Robles CA 679613 *****8244 0"]
[null,"8/19 ",50,"POS PURCHASE Third Base Market and S Paso Robles CA 679613 *****8244 0"]
[null,"8/19 ",78.41,"POS PURCHASE J`S BURGERS #1 PASO ROBLES CA IN9200 *****2385 0"]
[null,"8/20 ",1860,"TELLER WITHDRAWL"]
[null,"8/20 ",305,"Internet Transfer To 1684"]
[null,"8/20 ",219.46,"STATE FARM RO 0"]
[null,"8/20 ",273.60000000000002,"STATE FARM RO 0"]
[null,"8/20 ",38.880000000000003,"POS PURCHASE LOWE'S #27 PASO ROBLES CA 001 *****8244 0"]
[null,"8/20 ",41,"POS PURCHASE GOLDEN HIL PASO ROBLES CA 00N1GR *****8244 0"]
[null,"8/20 ",93.85,"POS PURCHASE LOWE'S #27 PASO ROBLES CA 001 *****2385 0"]
[null,"8/20 ",13.59,"POS PURCHASE SQ *THE BLUEPRINTER & G Paso Robles CA IN1400 *****8244 0"]
[null,"8/20 ",40,"POS PURCHASE Third Base Market and S Paso Robles CA 679613 *****8244 0"]
[null,"8/21 ",8711.75,"Internet Transfer To 1854"]
[null,"8/21 ",17,"POS PURCHASE GOLDEN HIL PASO ROBLES CA 00N1GR *****8244 0"]
[null,"8/21 ",80.489999999999995,"POS PURCHASE SMART AND FINAL 392 PASO ROBLES CA 481922 *****2385 0"]
[null,"8/21 ",103.18,"POS PURCHASE EL CAMINO BUILDING SUPP Atascadero CA 000100 *****8244 0"]
[null,"8/21 ",19.8,"POS PURCHASE BLAKE'S TRUE VALUE PASO ROBLES CA 000045 *****8244 0"]
[null,"8/21 ",20,"POS PURCHASE SQ *JOEBELLA COFFEE PAS Paso Robles CA IN7600 *****8244 0"]
[null,"8/21 ",40,"POS PURCHASE Third Base Market and S Paso Robles CA 679613 *****8244 0"]
[null,"8/21 ",54.09,"POS PURCHASE Third Base Market and S Paso Robles CA 679613 *****2385 0"]
[null,"8/21 ",70.83,"POS PURCHASE GIOVANNI'S FISH MARKET 805-7721276 CA 776141 *****8244 0"]
[null,"8/22 ",800,"Internet Transfer To 1854"]
[null,"8/22 ",26.71,"POS PURCHASE CV"]
[null,"8/22 ",56.5,"POS PURCHASE GOLDEN HIL PASO ROBLES CA 00N1GR *****8244 0"]
[null,"8/22 ",42.49,"POS PURCHASE Third Base Market and S Paso Robles CA 679613 *****8244 0"]
[null,"8/22 ",142.58000000000001,"POS PURCHASE UNVRS* ALL ACCESS PASS UNIVERSE.COM CA RXHOX5 *****2385 0"]
[null,"8/23 ",500,"Internet Transfer To 1854"]
[null,"8/23 ",27.3,"PPB #6601444972 PAYMENT"]
[null,"8/23 ",40,"POS PURCHASE Third Base Market and S Paso Robles CA 679613 *****8244 0"]
[null,"8/26 ",1000,"Internet Transfer To 1684"]
[null,"8/26 ",100,"ATM WITHDRAWAL PACIFIC PREMI 898 MORRO BAY MORRO BAY IC1962 *****8244 0"]
[null,"8/26 ",200,"ATM WITHDRAWAL PACIFIC PREMI 545 12TH STRE PASO ROBLE CA IC1965 *****8244 0"]
[null,"8/26 ",20.100000000000001,"POS PURCHASE LOWE'S #27 PASO ROBLES CA 001 *****8244 0"]
[null,"8/26 ",47,"POS PURCHASE GOLDEN HIL PASO ROBLES CA 00N1GR *****8244 0"]
[null,"8/26 ",66.05,"POS PURCHASE SPENCER S FRESH MARKETS MORRO BAY CA 447745 *****8244 0"]
[null,"8/26 ",72.989999999999995,"POS PURCHASE SPECIALTY PET SUPPLY ATASCADERO CA 075454 *****8244 0"]
[null,"8/26 ",3663.46,"POS PURCHASE EL CAMINO BUILDING SUPP Atascadero CA 000100 *****8244 0"]
[null,"8/26 ",18,"POS PURCHASE SQ *JOEBELLA COFFEE PAS Paso Robles CA INC700 *****8244 0"]
[null,"8/26 ",20,"POS PURCHASE SQ *JUST BAKED DOWNTOWN Paso Robles CA INC700 *****8244 0"]
[null,"8/26 ",40,"POS PURCHASE Third Base Market and S Paso Robles CA 679613 *****8244 0"]
[null,"8/26 ",43.04,"POS PURCHASE Third Base Market and S Paso Robles CA 679613 *****8244 0"]
[null,"8/26 ",85.85,"POS PURCHASE THE GREAT AMERICAN FISH MORRO BAY CA 787841 *****8244 0"]
[null,"8/26 ",130.12,"POS PURCHASE FARM SUPPLY COMPANY P PASO ROBLES CA 000079 *****8244 0"]
[null,"8/27 ",19.760000000000002,"POS PURCHASE GOLDEN HILLS MKT PASO ROBLES CA 107259 *****8244 0"]
[null,"8/27 ",83.91,"POS PURCHASE FOOD 4 LESS 0012 PASO ROBLES CA 986142 *****2385 0"]
[null,"8/28 ",40,"ATM WITHDRAWAL PACIFIC PREMI 898 MORRO BAY MORRO BAY IC1962 *****8244 0"]
[null,"8/28 ",94.82,"POS PURCHASE TRACTOR SUPPLY CO #1609 PASO ROBLES CA 090001 *****2385 0"]
[null,"8/28 ",11,"POS PURCHASE SQ *JOEBELLA COFFEE PAS Paso Robles CA IN6600 *****8244 0"]
[null,"8/28 ",11.95,"POS PURCHASE SQ *BUTTERCUP BAKERY & MORRO BAY CA IN8000 *****8244 0"]
[null,"8/28 ",37.25,"POS PURCHASE GOLDEN HIL PASO ROBLES CA 00N1GR *****8244 0"]
[null,"8/28 ",50,"POS PURCHASE Third Base Market and S Paso Robles CA 679613 *****8244 0"]
[null,"8/28 ",1008.5,"POS PURCHASE CENTRAL COAST OMS PASO 805-2392120 CA 774667 *****8244 0"]
[null,"8/29 ",15,"POS PURCHASE JOSEPH D BETTENCOURT MD PASO ROBLES CA 000087 *****2385 0"]
[null,"8/29 ",49.78,"POS PURCHASE Third Base Market and S Paso Robles CA 679613 *****8244 0"]
[null,"8/30 ",10,"BALANCE REQUIREMENT FEE"]
[null,"8/30 ",2,"PAPER STATEMENT FEE"]
[null,"8/30 ",14,"POS PURCHASE SQ *JOEBELLA COFFEE PAS Paso Robles CA IN7400 *****8244 0"]
[null,"8/30 ",34,"POS PURCHASE TEMPLETON MARKET TEMPLETON CA 668487 *****8244 0"]
[null,"8/30 ",43.25,"POS PURCHASE GOLDEN HIL PASO ROBLES CA 00N1GR *****8244 0"]
[null,"8/30 ",44.5,"POS PURCHASE SQ *JOEBELLA COFFEE PAS Paso Robles CA IN7700 *****8244 0"]